bitfinex/quotes_SOLUSD_20240621
["timestamp","ask_amount","ask_price","bid_price","bid_amount"]
[1718958030735,20.0,131.78,131.69,6.0748]
[1718958031106,20.0,131.78,131.68,26.0751]
[1718958031309,6.6365,131.77,131.68,26.0751]
[1718958031524,6.6365,131.77,131.68,20.0]
[1718958031729,6.6365,131.77,131.68,6.0752]
[1718958031935,6.6365,131.77,131.67,29.06]
[1718958032213,6.6365,131.77,131.7,6.0742]
[1718958032433,6.6365,131.77,131.71,6.4139]
[1718958032634,6.6365,131.77,131.71,0.34]
[1718958032933,6.6365,131.77,131.72,0.17]
[1718958033141,6.6365,131.77,131.7,29.4]
[1718958033429,6.6365,131.77,131.7,0.34]
[1718958033636,15.1081,131.76,131.7,0.34]
[1718958034710,6.0747,131.75,131.67,29.06]
[1718958035523,6.0747,131.75,131.68,6.0748]
[1718958036119,6.0747,131.75,131.67,29.06]
[1718958036309,6.0747,131.75,131.7,6.0742]
[1718958036513,6.0747,131.75,131.69,6.0747]
[1718958036811,6.0747,131.75,131.7,0.34]
[1718958038537,6.0747,131.75,131.71,0.17]
[1718958038742,6.0747,131.75,131.69,0.34]
[1718958038929,6.0747,131.75,131.69,0.17]
[1718958039140,6.0747,131.75,131.68,0.34]
[1718958040153,6.0747,131.75,131.68,6.4152]
[1718958040528,6.0747,131.75,131.69,6.0747]
[1718958041742,6.0747,131.75,131.7,6.4143]
[1718958041958,6.0747,131.75,131.71,6.0737]
[1718958042241,6.0747,131.75,131.72,0.34]
[1718958042418,6.0747,131.75,131.73,0.17]
[1718958042621,6.6201,131.79,131.73,6.2429]
[1718958042926,6.6201,131.79,131.75,6.072]
[1718958043143,6.6201,131.79,131.76,0.34]
[1718958043946,6.6201,131.79,131.77,0.17]
[1718958044122,6.6201,131.79,131.75,0.34]
[1718958044454,6.6201,131.79,131.75,0.17]
[1718958044620,6.6201,131.79,131.74,0.34]
[1718958045016,6.6201,131.79,131.69,9.54352375]
[1718958045249,6.6201,131.79,131.7,20.0]
[1718958045448,6.6201,131.79,131.69,29.06]
[1718958045630,6.6201,131.79,131.69,35.1346]
[1718958046641,6.6201,131.79,131.7,0.34]
[1718958048651,6.6201,131.79,131.7,6.4143]
[1718958048842,6.6201,131.79,131.7,0.34]
[1718958049343,6.6201,131.79,131.72,6.073]
[1718958049647,6.6201,131.79,131.73,0.34]
[1718958050043,16.075,131.78,131.69,29.06]
[1718958050228,16.075,131.78,131.67,11.30423759]
[1718958050229,6.4942,131.77,131.67,6.0755]
[1718958050430,6.4942,131.77,131.68,20.0]
[1718958050657,6.4942,131.77,131.68,26.0752]
[1718958051537,6.4942,131.77,131.69,0.34]
[1718958052745,6.4942,131.77,131.7,0.17]
[1718958053051,6.4942,131.77,131.68,0.34]
[1718958053560,15.8226,131.75,131.68,0.34]
[1718958053748,15.8226,131.75,131.68,0.17]
[1718958054828,15.8226,131.75,131.68,0.34]
[1718958055551,6.0102,131.74,131.68,0.17]
[1718958055851,15.8226,131.75,131.63,6.0773]
[1718958055852,26.0102,131.73,131.63,6.0773]
[1718958056063,26.0102,131.73,131.61,31.3684]
[1718958056064,26.0102,131.73,131.64,6.0771]
[1718958056368,15.4334,131.72,131.64,6.0771]
[1718958057038,15.4334,131.72,131.65,6.0766]
[1718958057238,15.4334,131.72,131.66,0.34]
[1718958057757,15.4334,131.72,131.66,6.4162]
[1718958057938,15.4334,131.72,131.66,0.34]
[1718958058749,15.4334,131.72,131.66,6.416]
[1718958059243,15.4334,131.72,131.66,0.34]
[1718958059660,15.4334,131.72,131.67,0.17]
[1718958059874,15.4334,131.72,131.65,0.34]
[1718958060368,15.4334,131.72,131.61,30.80349246]
[1718958060369,6.4768,131.71,131.61,15.60819246]
[1718958060575,6.4768,131.71,131.63,60.8331]
[1718958060752,6.4768,131.71,131.68,6.075]
[1718958061080,6.4768,131.71,131.69,6.0747]
[1718958061259,261.32431355,131.82,131.69,45.64]
[1718958061260,6.4554,131.75,131.69,45.64]
[1718958061561,6.4554,131.75,131.71,29.06]
[1718958061761,6.4554,131.75,131.72,0.17]
[1718958062238,6.4554,131.75,131.72,0.34]
[1718958062437,6.4554,131.75,131.72,6.4134]
[1718958062663,6.4554,131.75,131.72,0.34]
[1718958063164,6.4554,131.75,131.73,0.17]
[1718958063337,6.4554,131.75,131.71,0.34]
[1718958063535,6.4554,131.75,131.71,6.4139]
[1718958064035,6.4554,131.75,131.73,6.0726]
[1718958064256,16.1581,131.77,131.74,0.34]
[1718958064564,16.1581,131.77,131.74,6.4125]
[1718958064773,16.1581,131.77,131.74,0.34]
[1718958065270,16.1581,131.77,131.74,6.4122]
[1718958065482,6.0101,131.79,131.74,6.4122]
[1718958065833,6.0101,131.79,131.75,6.072]
[1718958066033,6.0101,131.79,131.76,0.34]
[1718958066237,6.0101,131.79,131.76,6.4116]
[1718958066464,6.0101,131.79,131.76,0.34]
[1718958066849,22.7896,131.84,131.76,29.4]
[1718958067155,22.7896,131.84,131.76,35.4713]
[1718958067468,22.7896,131.84,131.76,29.4]
[1718958068455,22.7896,131.84,131.76,35.4715]
[1718958068737,22.7896,131.84,131.76,29.4]
[1718958069461,22.7896,131.84,131.76,35.4716]
[1718958069640,22.7896,131.84,131.77,6.0711]
[1718958069841,22.7896,131.84,131.78,0.34]
[1718958070070,22.7896,131.84,131.78,0.17]
[1718958070561,22.7896,131.84,131.77,0.17]
[1718958070766,22.7896,131.84,131.76,6.4115]
[1718958071149,22.7896,131.84,131.77,6.0711]
[1718958071357,22.7896,131.84,131.78,6.4106]
[1718958071572,22.7896,131.84,131.78,6.2406]
[1718958071756,22.7896,131.84,131.79,0.17]
[1718958073275,22.7896,131.84,131.78,0.34]
[1718958073478,22.7896,131.84,131.77,6.4111]
[1718958074969,22.7896,131.84,131.77,0.34]
[1718958075150,22.7896,131.84,131.77,20.34]
[1718958075668,22.7896,131.84,131.77,0.17]
[1718958075876,22.7896,131.84,131.75,29.06]
[1718958076381,20.0,131.83,131.75,29.06]
[1718958076552,20.0,131.83,131.73,31.15582375]
[1718958076954,20.0,131.83,131.73,25.08312375]
[1718958077154,20.0,131.83,131.74,51.7124]
[1718958077364,22.7896,131.84,131.74,45.64]
[1718958077568,22.7896,131.84,131.76,6.0715]
[1718958077877,22.7896,131.84,131.77,6.0711]
[1718958078056,22.7896,131.84,131.76,6.0714]
[1718958078375,22.7896,131.84,131.77,6.411]
[1718958079060,22.7896,131.84,131.77,0.34]
[1718958079265,22.7896,131.84,131.76,20.34]
[1718958079461,22.7896,131.84,131.78,0.17]
[1718958079662,22.7896,131.84,131.76,26.4115]
[1718958080369,22.7896,131.84,131.76,20.34]
[1718958080673,22.7896,131.84,131.73,25.08312375]
[1718958080873,22.7896,131.84,131.74,20.0]
[1718958081060,22.7896,131.84,131.74,26.0721]
[1718958081253,22.7896,131.84,131.74,20.0]
[1718958081782,22.7896,131.84,131.74,26.0725]
[1718958082076,22.7896,131.84,131.75,0.34]
[1718958082313,22.7896,131.84,131.73,9.54352375]
[1718958082465,6.1575,131.82,131.71,11.30423759]
[1718958082774,6.1575,131.82,131.71,17.37803759]
[1718958083149,20.0,131.81,131.71,17.37803759]
[1718958083351,20.0,131.81,131.71,56.94423759]
[1718958083575,6.1575,131.82,131.75,6.072]
[1718958083780,6.1575,131.82,131.76,0.34]
[1718958085686,6.1575,131.82,131.75,0.34]
[1718958085989,6.1575,131.82,131.75,0.17]
[1718958086365,6.1575,131.82,131.74,0.34]
[1718958087085,6.1575,131.82,131.74,0.17]
[1718958087259,6.1575,131.82,131.7,35.1344]
[1718958087260,20.0,131.81,131.7,35.1344]
[1718958087455,15.0634,131.8,131.71,20.0]
[1718958087772,15.0634,131.8,131.7,29.06]
[1718958088360,15.0634,131.8,131.7,35.1342]
[1718958088762,15.0634,131.8,131.71,0.34]
[1718958089584,15.0634,131.8,131.73,6.0726]
[1718958089769,15.0634,131.8,131.74,0.34]
[1718958090467,15.0634,131.8,131.73,35.4727]
[1718958090979,15.0634,131.8,131.73,29.4]
[1718958093694,15.0634,131.8,131.73,35.4728]
[1718958094592,15.0634,131.8,131.74,6.0721]
[1718958094891,15.0634,131.8,131.75,0.34]
[1718958095473,15.0634,131.8,131.74,0.34]
[1718958095699,0.0634,131.8,131.74,0.17]
[1718958096599,0.0634,131.8,131.73,0.17]
[1718958096975,0.0634,131.8,131.73,0.34]
[1718958097384,0.0634,131.8,131.74,29.06]
[1718958097695,0.0634,131.8,131.75,0.34]
[1718958098002,6.1575,131.82,131.76,6.0713]
[1718958098293,6.1575,131.82,131.77,29.4]
[1718958100776,6.1575,131.82,131.77,35.4709]
[1718958101175,6.1575,131.82,131.77,29.4]
[1718958101699,6.1575,131.82,131.77,35.4708]
[1718958101903,16.5628,131.84,131.78,45.64]
[1718958102084,16.5628,131.84,131.77,52.23]
[1718958102085,6.199,131.86,131.8,35.1293]
[1718958102399,6.199,131.86,131.81,0.34]
[1718958105801,6.199,131.86,131.79,6.0699]
[1718958105802,6.199,131.86,131.8,29.4]
[1718958107210,6.199,131.86,131.78,20.0]
[1718958107404,6.199,131.86,131.77,29.06]
[1718958107587,6.199,131.86,131.76,26.39173911]
[1718958107792,6.199,131.86,131.77,6.0711]
[1718958108500,6.199,131.86,131.78,6.2406]
[1718958108707,6.199,131.86,131.79,0.17]
[1718958108901,6.199,131.86,131.79,6.2401]
[1718958109100,6.199,131.86,131.8,6.2397]
[1718958109412,6.199,131.86,131.81,6.4092]
[1718958109827,6.199,131.86,131.81,0.34]
[1718958118717,6.199,131.86,131.82,0.17]
[1718958118921,6.199,131.86,131.82,0.34]
[1718958119518,6.199,131.86,131.81,6.4092]
[1718958120298,6.199,131.86,131.81,0.34]
[1718958121511,6.199,131.86,131.81,6.0693]
[1718958121823,6.199,131.86,131.82,0.34]
[1718958123821,6.199,131.86,131.77,17.37503759]
[1718958123995,6.199,131.86,131.77,11.30423759]
[1718958124394,6.199,131.86,131.76,44.14770152]
[1718958125413,6.199,131.86,131.77,6.0711]
[1718958125831,6.199,131.86,131.78,0.17]
[1718958126005,6.199,131.86,131.78,0.34]
[1718958126821,6.199,131.86,131.79,0.17]
[1718958127128,6.199,131.86,131.77,0.34]
[1718958127505,6.199,131.86,131.77,57.28423759]
[1718958127705,6.199,131.86,131.8,6.0695]
[1718958127914,6.199,131.86,131.81,0.34]
[1718958128707,6.199,131.86,131.82,0.17]
[1718958128914,6.199,131.86,131.8,0.34]
[1718958129111,6.199,131.86,131.8,0.17]
[1718958130125,6.199,131.86,131.82,6.0684]
[1718958130312,6.199,131.86,131.83,0.34]
[1718958130908,6.199,131.86,131.84,0.17]
[1718958131102,6.199,131.86,131.82,0.34]
[1718958132042,6.199,131.86,131.81,0.34]
[1718958132833,6.199,131.86,131.81,0.17]
[1718958133026,6.199,131.86,131.8,0.17]
[1718958133421,6.199,131.86,131.8,6.2397]
[1718958133816,6.199,131.86,131.8,0.17]
[1718958134214,6.199,131.86,131.8,6.4095]
[1718958135632,6.199,131.86,131.81,6.0693]
[1718958135836,6.199,131.86,131.82,29.4]
[1718958136037,15.649,131.88,131.83,6.068]
[1718958136331,15.649,131.88,131.84,0.34]
[1718958137536,15.649,131.88,131.85,0.17]
[1718958137729,15.649,131.88,131.83,1.8549824]
[1718958137932,15.649,131.88,131.83,0.34]
[1718958141614,15.649,131.88,131.83,6.4084]
[1718958142925,15.649,131.88,131.84,6.0679]
[1718958143128,6.2861,131.89,131.85,0.34]
[1718958143927,6.2861,131.89,131.86,0.17]
[1718958144135,6.2861,131.89,131.84,0.34]
[1718958144824,6.2861,131.89,131.82,31.39797441]
[1718958145025,6.2861,131.89,131.82,20.0]
[1718958145331,6.2861,131.89,131.81,29.06]
[1718958146134,6.2861,131.89,131.82,0.17]
[1718958146717,6.2861,131.89,131.82,0.34]
[1718958149419,6.2861,131.89,131.82,0.17]
[1718958150446,6.2861,131.89,131.82,6.2388]
[1718958150748,6.2861,131.89,131.82,0.17]
[1718958150931,6.2861,131.89,131.82,0.34]
[1718958153528,6.2861,131.89,131.82,6.4088]
[1718958154234,6.2861,131.89,131.83,6.0682]
[1718958154540,6.2861,131.89,131.84,0.34]
[1718958155647,6.2861,131.89,131.85,0.17]
[1718958155848,6.2861,131.89,131.83,0.34]
[1718958156320,6.2861,131.89,131.84,0.17]
[1718958156528,6.2861,131.89,131.81,29.06]
[1718958156728,15.6842,131.88,131.81,29.06]
[1718958157921,6.6213,131.91,131.84,74.7]
[1718958158123,6.6213,131.91,131.85,45.98]
[1718958158436,6.6213,131.91,131.86,65.64]
[1718958158653,6.6213,131.91,131.87,6.4065]
[1718958158827,6.6213,131.91,131.87,35.4664]
[1718958159353,6.6213,131.91,131.88,6.066]
[1718958159542,6.6213,131.91,131.89,0.34]
[1718958159726,6.6213,131.91,131.9,0.17]
[1718958159922,6.6213,131.91,131.87,35.4665]
[1718958160343,6.6213,131.91,131.87,29.4]
[1718958160749,6.6213,131.91,131.87,0.34]
[1718958161162,6.6213,131.91,131.88,0.17]
[1718958161359,6.6213,131.91,131.86,6.4069]
[1718958161568,15.3614,131.92,131.86,0.34]
[1718958161866,15.3614,131.92,131.86,45.98]
[1718958162044,15.3614,131.92,131.86,6.4066]
[1718958162441,15.3614,131.92,131.87,6.0665]
[1718958162640,15.3614,131.92,131.88,0.34]
[1718958163958,6.16,131.91,131.87,0.34]
[1718958164156,6.16,131.91,131.86,0.34]
[1718958165061,6.16,131.91,131.86,6.4069]
[1718958165443,6.16,131.91,131.86,0.34]
[1718958165947,6.16,131.91,131.86,6.4069]
[1718958166254,6.16,131.91,131.87,6.0665]
[1718958166455,6.16,131.91,131.88,0.34]
[1718958170277,6.16,131.91,131.87,0.34]
[1718958170482,6.16,131.91,131.89,0.17]
[1718958170678,6.16,131.91,131.87,0.17]
[1718958170877,6.16,131.91,131.86,0.17]
[1718958171862,6.16,131.91,131.86,6.2369]
[1718958172409,6.16,131.91,131.87,0.17]
[1718958174769,6.16,131.91,131.86,0.17]
[1718958174770,6.16,131.91,131.86,0.34]
[1718958176779,6.16,131.91,131.86,6.4068]
[1718958177863,6.16,131.91,131.87,6.0665]
[1718958178073,6.16,131.91,131.88,0.34]
[1718958178562,6.16,131.91,131.88,0.17]
[1718958178764,6.16,131.91,131.87,0.34]
[1718958179560,6.16,131.91,131.86,6.407]
[1718958179778,6.16,131.91,131.88,0.17]
[1718958179971,6.16,131.91,131.86,6.407]
[1718958180381,6.16,131.91,131.83,11.39607365]
[1718958180696,6.16,131.91,131.84,20.0]
[1718958181075,6.16,131.91,131.85,6.0672]
[1718958181686,6.16,131.91,131.83,6.0682]
[1718958181876,15.6874,131.9,131.81,21.61839487]
[1718958182179,15.6874,131.9,131.81,16.28990426]
[1718958183193,15.6874,131.9,131.82,0.34]
[1718958183802,6.598,131.89,131.81,10.22090426]
[1718958184090,15.7361,131.87,131.81,6.0693]
[1718958185082,15.7361,131.87,131.8,29.06]
[1718958185470,15.7361,131.87,131.81,0.17]
[1718958186093,15.7361,131.87,131.81,0.34]
[1718958186493,15.7361,131.87,131.81,6.4093]
[1718958186691,15.7361,131.87,131.83,6.0679]
[1718958186901,15.7361,131.87,131.84,0.34]
[1718958187688,15.7361,131.87,131.85,6.0673]
[1718958187892,6.598,131.88,131.86,0.34]
[1718958188194,6.598,131.88,131.87,0.17]
[1718958188379,6.598,131.88,131.86,0.17]
[1718958188688,6.598,131.88,131.85,0.17]
[1718958188901,6.598,131.88,131.84,20.34]
[1718958189070,6.598,131.88,131.84,65.98]
[1718958189272,6.598,131.88,131.85,6.0671]
[1718958189483,6.598,131.88,131.86,0.34]
[1718958189995,6.598,131.88,131.86,20.34]
[1718958191478,6.598,131.88,131.83,29.06]
[1718958191680,6.598,131.88,131.84,20.0]
[1718958192973,6.598,131.88,131.85,0.34]
[1718958195802,15.6879,131.87,131.8,11.39847613]
[1718958196007,15.6879,131.87,131.81,20.0]
[1718958197195,15.6879,131.87,131.8,26.0697]
[1718958197413,15.6879,131.87,131.81,0.17]
[1718958198109,15.6879,131.87,131.81,6.2392]
[1718958198274,15.6879,131.87,131.82,6.0688]
[1718958198478,15.6879,131.87,131.83,0.34]
[1718958200688,15.6879,131.87,131.8,49.06]
[1718958200924,22.6343,131.85,131.77,11.39964798]
[1718958201132,22.6343,131.85,131.78,20.0]
[1718958201290,22.6343,131.85,131.77,20.0]
[1718958201491,22.6343,131.85,131.76,20.0]
[1718958202228,22.6343,131.85,131.77,0.17]
[1718958202407,22.6343,131.85,131.77,0.34]
[1718958203137,22.6343,131.85,131.77,0.17]
[1718958203417,26.3858,131.84,131.75,29.06]
[1718958203821,15.6579,131.83,131.75,29.06]
[1718958204034,6.2122,131.82,131.75,29.06]
[1718958204793,6.2122,131.82,131.76,0.17]
[1718958205496,6.2122,131.82,131.76,0.34]
[1718958205921,6.2122,131.82,131.75,29.06]
[1718958206097,6.2122,131.82,131.74,6.0724]
[1718958206304,6.2122,131.82,131.72,35.1334]
[1718958206836,6.2122,131.82,131.73,20.0]
[1718958207134,16.5363,131.81,131.73,20.0]
[1718958207328,6.3442,131.8,131.72,20.0]
[1718958207833,6.3442,131.8,131.73,0.17]
[1718958208020,6.3442,131.8,131.73,6.2428]
[1718958208423,6.3442,131.8,131.74,0.17]
[1718958211537,6.3442,131.8,131.74,6.2423]
[1718958211737,6.3442,131.8,131.75,20.17]
[1718958211941,6.3442,131.8,131.76,0.34]
[1718958214034,6.3442,131.8,131.76,52.0514]
[1718958214234,16.5363,131.81,131.77,100.771]
[1718958214542,16.5363,131.81,131.78,20.34]
[1718958216417,6.1895,131.83,131.78,26.4106]
[1718958216819,6.1895,131.83,131.78,72.0506]
[1718958217024,15.4787,131.85,131.8,35.1295]
[1718958217245,15.4787,131.85,131.81,26.4092]
[1718958217411,15.4787,131.85,131.81,56.4092]
[1718958217614,6.6094,131.86,131.82,6.0688]
[1718958217947,16.5583,131.89,131.83,55.4683]
[1718958218513,16.5583,131.89,131.83,85.4683]
[1718958218742,16.5583,131.89,131.83,131.1083]
[1718958219622,16.5583,131.89,131.83,125.04]
[1718958219959,16.5583,131.89,131.83,131.1082]
[1718958220730,16.5583,131.89,131.83,79.4]
[1718958221255,16.5583,131.89,131.83,131.1083]
[1718958221442,16.5583,131.89,131.84,6.0678]
[1718958221645,16.5583,131.89,131.85,20.34]
[1718958222150,16.5583,131.89,131.85,26.4074]
[1718958222445,16.5583,131.89,131.85,20.34]
[1718958224726,16.5583,131.89,131.85,0.34]
[1718958225454,16.5583,131.89,131.84,20.0]
[1718958226633,16.5583,131.89,131.84,26.0679]
[1718958226951,16.5583,131.89,131.84,20.0]
[1718958227257,16.5583,131.89,131.85,0.34]
[1718958234865,16.5583,131.89,131.83,29.06]
[1718958235037,30.0,131.85,131.8,9.19823759]
[1718958235237,30.0,131.85,131.79,45.64]
[1718958235446,30.0,131.85,131.79,51.71]
[1718958235768,30.0,131.85,131.79,6.07]
[1718958236062,30.0,131.85,131.78,35.1305]
[1718958236451,30.0,131.85,131.78,29.06]
[1718958236845,30.0,131.85,131.8,6.0695]
[1718958237048,30.0,131.85,131.81,0.34]
[1718958237368,6.6627,131.88,131.81,0.34]
[1718958237539,6.6627,131.88,131.8,20.34]
[1718958237741,6.6627,131.88,131.8,20.0]
[1718958237954,6.6627,131.88,131.8,26.0697]
[1718958239171,6.6627,131.88,131.81,0.34]
[1718958240057,15.8091,131.87,131.81,0.17]
[1718958240264,6.5846,131.86,131.81,0.17]
[1718958240441,6.5846,131.86,131.8,0.17]
[1718958241443,6.5846,131.86,131.8,0.34]
[1718958241669,6.5846,131.86,131.8,0.17]
[1718958242856,6.5846,131.86,131.8,0.34]
[1718958244761,6.5846,131.86,131.8,0.17]
[1718958245671,6.5846,131.86,131.79,20.0]
[1718958246669,6.5846,131.86,131.8,0.17]
[1718958246977,6.5846,131.86,131.8,0.34]
[1718958247175,6.5846,131.86,131.76,9.19823759]
[1718958247176,15.5145,131.83,131.73,6.0728]
[1718958247494,26.1293,131.82,131.73,29.06]
[1718958247686,26.1293,131.82,131.73,35.1329]
[1718958247971,30.0,131.81,131.74,6.0725]
[1718958248169,30.0,131.81,131.73,35.1328]
[1718958248691,30.0,131.81,131.71,83.89823759]
[1718958248692,15.4281,131.79,131.71,83.89823759]
[1718958248973,15.4281,131.79,131.72,20.0]
[1718958249774,15.4281,131.79,131.72,26.0734]
[1718958249960,15.4281,131.79,131.73,0.34]
[1718958251850,15.4281,131.79,131.73,6.4128]
[1718958252050,15.4281,131.79,131.74,74.7]
[1718958252250,6.4897,131.8,131.75,26.412]
[1718958252649,6.4897,131.8,131.77,35.131]
[1718958252850,6.4897,131.8,131.78,20.34]
[1718958253080,15.8199,131.82,131.78,20.34]
[1718958253283,15.8199,131.82,131.78,26.4105]
[1718958253654,15.8199,131.82,131.78,20.34]
[1718958254782,15.8199,131.82,131.78,26.4106]
[1718958255012,15.8199,131.82,131.78,20.34]
[1718958256756,15.61935139,131.82,131.78,20.34]
[1718958257980,15.61935139,131.82,131.78,26.4107]
[1718958258168,6.6029,131.83,131.78,26.4107]
[1718958258369,6.6029,131.83,131.79,6.0701]
[1718958258557,6.6029,131.83,131.8,0.34]
[1718958259464,6.4816,131.9,131.8,20.34]
[1718958259658,20.0,131.89,131.8,49.4]
[1718958259857,15.4946,131.89,131.81,45.64]
[1718958260060,15.4946,131.89,131.84,6.0679]
[1718958260284,15.4946,131.89,131.85,0.34]
[1718958261887,15.4946,131.89,131.85,0.17]
[1718958262085,15.4946,131.89,131.85,0.34]
[1718958262260,15.4946,131.89,131.85,0.17]
[1718958267889,15.4946,131.89,131.84,20.34]
[1718958268467,15.4946,131.89,131.84,26.4079]
[1718958269291,15.4946,131.89,131.84,20.34]
[1718958270882,15.4946,131.89,131.84,20.0]
[1718958272074,15.4946,131.89,131.85,0.34]
[1718958272577,6.4816,131.9,131.85,0.34]
[1718958275005,6.4816,131.9,131.8,21.3518]
[1718958275206,6.4816,131.9,131.81,20.0]
[1718958275372,20.0,131.89,131.8,26.0697]
[1718958276500,20.0,131.89,131.81,0.17]
[1718958277971,20.0,131.89,131.81,0.34]
[1718958278383,20.0,131.89,131.8,20.0]
[1718958278384,16.3161,131.88,131.8,20.0]
[1718958278667,16.3161,131.88,131.8,6.0696]
[1718958278871,16.3161,131.88,131.81,20.0]
[1718958279797,16.3161,131.88,131.82,0.34]
[1718958280172,16.3161,131.88,131.83,6.0683]
[1718958280394,16.3161,131.88,131.84,0.34]
[1718958280600,6.4816,131.9,131.84,0.34]
[1718958280995,6.4816,131.9,131.83,20.34]
[1718958281335,6.4816,131.9,131.83,0.34]
[1718958281504,6.4816,131.9,131.82,0.34]
[1718958283201,6.4816,131.9,131.82,6.4087]
[1718958283410,6.4816,131.9,131.83,20.0]
[1718958283628,6.4816,131.9,131.84,0.34]
[1718958287423,6.4816,131.9,131.83,0.34]
[1718958289600,6.4816,131.9,131.86,9.68]
[1718958290827,15.8093,131.91,131.89,9.68]
[1718958291027,15.8093,131.91,131.9,9.68]
[1718958292322,15.8093,131.91,131.83,15.716]
[1718958292615,6.6174,131.9,131.82,20.0]
[1718958292818,16.2974,131.9,131.84,9.68]
[1718958293019,30.0,131.89,131.84,9.68]
[1718958293413,30.0,131.89,131.82,20.0]
[1718958293616,30.0,131.89,131.81,26.0691]
[1718958294128,30.0,131.89,131.82,0.17]
[1718958294631,30.0,131.89,131.81,20.0]
[1718958295930,6.6646,131.87,131.8,29.05]
[1718958296130,6.6646,131.87,131.79,6.0702]
[1718958296131,6.6646,131.87,131.81,20.0]
[1718958296334,6.6646,131.87,131.8,20.0]
[1718958296708,6.6646,131.87,131.79,6.07]
[1718958296910,6.6646,131.87,131.8,20.0]
[1718958297109,6.6646,131.87,131.81,0.17]
[1718958297737,6.6646,131.87,131.8,0.34]
[1718958298111,6.6646,131.87,131.8,29.39]
[1718958298449,30.0,131.86,131.81,20.0]
[1718958298734,30.0,131.86,131.82,0.34]
[1718958299638,6.6646,131.87,131.82,0.34]
[1718958300345,6.6646,131.87,131.82,6.4088]
[1718958301535,6.0636,131.9,131.84,6.0679]
[1718958301724,6.0636,131.9,131.85,0.17]
[1718958301931,6.0636,131.9,131.85,0.34]
[1718958302234,6.0636,131.9,131.85,6.4074]
[1718958302736,6.0636,131.9,131.85,0.34]
[1718958302940,6.0636,131.9,131.85,20.34]
[1718958303440,16.1011,131.92,131.85,20.34]
[1718958303954,16.1011,131.92,131.85,26.4073]
[1718958309114,16.1011,131.92,131.85,20.34]
[1718958309341,16.1011,131.92,131.85,20.17]
[1718958309652,16.1011,131.92,131.85,0.17]
[1718958309944,16.1011,131.92,131.84,20.0]
[1718958310249,16.1011,131.92,131.79,29.05]
[1718958310250,6.1303,131.91,131.79,29.05]
[1718958310446,6.1303,131.91,131.8,20.0]
[1718958310447,20.0,131.9,131.8,20.0]
[1718958310618,20.0,131.9,131.8,26.0696]
[1718958311017,20.0,131.9,131.82,6.0688]
[1718958311243,6.1303,131.91,131.82,6.0688]
[1718958311448,6.1303,131.91,131.83,26.0682]